Workbook

Sheet 1-3 ГОДА
A1: 21 день на 29.09.2025
A2: МОУ детский сад № 320 Ежеденевное 20-ти дневное меню ( Весна-лето) для детей дошкольного возраста 1-3 лет, 12 часового режима функционирования
A3: Прием пищи, наименование блюда | B3: Масса порции | C3: Пищевые вещества | F3: Энергети-ческая ценность, ккал
C4: Белки, г | D4: Жиры, г | E4: Углеводы, г
A5: Завтрак
A6: СУП МОЛОЧНЫЙ С КРУПОЙ (РИСОВОЙ) ТТК № 107 | B6: 150 | C6: 3.5 | D6: 3.9 | E6: 12.3 | F6: 100.8
A7: КОФЕЙНЫЙ НАПИТОК С МОЛОКОМ № 395 | B7: 150 | C7: 2.3 | D7: 1.8 | E7: 11.4 | F7: 71.3
A8: БАТОН | B8: 45 | C8: 3.4 | D8: 1.3 | E8: 23.1 | F8: 117.9
A9: СЫР ( ПОРЦИЯМИ) № 7 | B9: 5 | C9: 1.2 | D9: 1.5 | E9: 0.0 | F9: 17.7
A10: ИТОГО ЗА ЗАВТРАК | B10: 350 | C10: =SUM(C6:C9) -> 10.4 | D10: =SUM(D6:D9) -> 8.5 | E10: =SUM(E6:E9) -> 46.8 | F10: =SUM(F6:F9) -> 307.7
A11: II Завтрак
A12: ФРУКТЫ СВЕЖИЕ ( ЯБЛОКО) | B12: 200 | C12: 0.8 | D12: 0.8 | E12: 19.0 | F12: 137.0
A13: ИТОГО ЗА 2-й ЗАВТРАК | B13: =SUM(B12) -> 200 | C13: =SUM(C12) -> 0.8 | D13: =SUM(D12) -> 0.8 | E13: =SUM(E12) -> 19.0 | F13: 137.0
A14: Обед
A15: ПОМИДОРЫ СОЛЁНЫЕ | B15: 30 | C15: 0.3 | D15: 0.1 | E15: 1.1 | F15: 7.2
A16: СУП КАРТОФЕЛЬНЫЙ НА МЯСО-КОСТНОМ БУЛЬОНЕ | B16: 150 | C16: 2.1 | D16: 2.3 | E16: 11.7 | F16: 75.8
A17: МАКАРОННИК С МЯСОМ ИЛИ ПЕЧЕНЬЮ ( ГОВЯДИНА) | B17: 150 | C17: 14.8 | D17: 7.6 | E17: 31.5 | F17: 272.7
A18: КОМПОТ ИЗ СВЕЖИХ ПЛОДОВ | B18: 150 | C18: 0.1 | D18: 0.1 | E18: 17.4 | F18: 71.8
A19: ХЛЕБ РЖАНОЙ | B19: 20 | C19: 1.3 | D19: 0.2 | E19: 8.5 | F19: 40.8
A20: ХЛЕБ ПШЕНИЧНЫЙ | B20: 20 | C20: 1.5 | D20: 0.1 | E20: 9.7 | F20: 46.0
A21: ИТОГО ЗА ОБЕД | B21: 520 | C21: 20.1 | D21: 10.3 | E21: 80.2 | F21: 511.2
A22: Полдник
A23: ИКРА СВКОЛЬНАЯ ИЛИ МОРКОВНАЯ ( МОРКОВНАЯ) | B23: 30 | C23: 0.4 | D23: 1.5 | E23: 2.3 | F23: 24.6
A24: КОТЛЕТЫ РУБЛЕННЫЕ ИЗ ПТИЦЫ С СОУСОМ СМЕТАННЫМ | B24: 50/30 | C24: 6.5 | D24: 9.2 | E24: 9.9 | F24: 132.6
A25: ПЮРЕ КАРТОФЕЛЬНОЕ | B25: 110 | C25: 2.3 | D25: 3.3 | E25: 15.6 | F25: 104.9
A26: ЧАЙ С ЛИМОНОМ | B26: 180/10/7 | C26: 0.2 | D26: 0.0 | E26: 10.0 | F26: 41.7
A27: ХЛЕБ ПШЕНИЧНЫЙ | B27: 20 | C27: 1.5 | D27: 0.1 | E27: 9.7 | F27: 46.0
A28: БУЛОЧКА ВАНИЛЬНАЯ | B28: 50 | C28: 4.1 | D28: 3.9 | E28: 28.9 | F28: 167.3
A29: ИТОГО ЗА ПОЛДНИК | B29: 487 | C29: =SUM(C23:C28) -> 15.0 | D29: =SUM(D23:D28) -> 18.0 | E29: 79.7 | F29: 517.1
A30: Всего за день: | C30: 46.2 | D30: 37.3 | E30: 234.6 | F30: =SUM(F29+F21+F13+F10) -> 1,473.0

Sheet 3-7 ЛЕТ
A1: 21 день на 29.09.2025
A2: МОУ детский сад № 320 Ежеденевное 20-ти дневное меню (Весна-лето) для детей дошкольного возраста 3-7 лет, 12 часового режима функционирования
A3: Прием пищи, наименование блюда | B3: Масса порции | C3: Пищевые вещества | F3: Энергети-ческая ценность, ккал
C4: Белки, г | D4: Жиры, г | E4: Углеводы, г
A5: Завтрак
A6: СУП МОЛОЧНЫЙ С КРУПОЙ ( РИСОВОЙ) ТТК № 107 | B6: 180 | C6: 4.3 | D6: 4.4 | E6: 15.0 | F6: 118.0
A7: КОФЕЙНЫЙ НАПИТОК С МОЛОКОМ № 395 | B7: 180 | C7: 2.8 | D7: 2.2 | E7: 15.4 | F7: 92.9
A8: БУТЕРБРОД С МАСЛОМ № 1 | B8: 35/10 | C8: 2.8 | D8: 7.5 | E8: 17.7 | F8: 157.7
A10: ИТОГО ЗА ЗАВТРАК | B10: 405 | C10: =SUM(C6:C9) -> 9.9 | D10: =SUM(D6:D9) -> 14.1 | E10: =SUM(E6:E9) -> 48.1 | F10: 382.2
A11: II Завтрак
A12: Яблоки фаршированные изюмом | B12: 110 | C12: 0.7 | D12: 0.5 | E12: 31.9 | F12: 137.0
A13: ИТОГО ЗА 2-й ЗАВТРАК | B13: 200 | C13: =SUM(C12) -> 0.7 | D13: =SUM(D12) -> 0.5 | E13: =SUM(E12) -> 31.9 | F13: =SUM(F12) -> 137.0
A14: Обед
A15: ПОМИДОРЫ СОЛЁНЫЕ | B15: 50 | C15: 0.6 | D15: 0.1 | E15: 1.9 | F15: 12
A16: СУП КАРТОФЕЛЬНЫЙ НА мясо-костном БУЛЬОНЕ | B16: 180 | C16: 2.4 | D16: 2.1 | E16: 13.9 | F16: 85.7
A17: МАКАРОННИК С МЯСОМ ИЛИ ПЕЧЕНЬЮ ( говядина) | B17: 150 | C17: 14.8 | D17: 7.6 | E17: 31.5 | F17: 272.7
A18: СОУС ТОМАТНЫЙ № 348 | B18: 30 | C18: 0.4 | D18: 1.4 | E18: 2.0 | F18: 24.5
A19: КОМПОТ ИХ СВЕЖИХ ПЛОДОВ № 372 | B19: 180 | C19: 0.1 | D19: 0.1 | E19: 20.9 | F19: 86.0
A20: ХЛЕБ РЖАНОЙ | B20: 50 | C20: 3.3 | D20: 0.4 | E20: 21.2 | F20: 102.0
A21: ХЛЕБ ПШЕНИЧНЫЙ | B21: 30 | C21: 2.3 | D21: 0.2 | E21: 15.1 | F21: 71.0
A22: ИТОГО ЗА ОБЕД | B22: 670 | C22: 23.9 | D22: 11.9 | E22: 106.5 | F22: 648.7
A23: Полдник
A24: ИКРА СВЕКОЛЬНАЯ ИЛИ МОРКОВНАЯ ( МОРКОВНАЯ) | B24: 50 | C24: 1.1 | D24: 2.4 | E24: 5.6 | F24: 49.9
A25: КОТЛЕТА РУБЛЕННАЯ ИЗ ПТИЦЫ С СОУСОМ СМЕТАННЫМ С ТОМАТОМ | B25: 70/50 | C25: 12.4 | D25: 13.5 | E25: 15.1 | F25: 238.4
A26: ПЮРЕ КАРТОФЕЛЬНОЕ | B26: 150 | C26: 3.1 | D26: 4.6 | E26: 21.4 | F26: 143.9
A27: ЧАЙ С ЛИМОНОМ № 393 | B27: 180/10/7 | C27: 0.2 | D27: 0.0 | E27: 10.0 | F27: 41.7
A28: ХЛЕБ ПШЕНИЧНЫЙ | B28: 35 | C28: 2.7 | D28: 0.2 | E28: 17.6 | F28: 82.9
A29: БУЛОЧКА ВАНИЛЬНАЯ № 467 | B29: 50 | C29: 4.1 | D29: 3.9 | E29: 28.9 | F29: 167.3
A30: ИТОГО ЗА ПОЛДНИК | B30: 602 | C30: 23.6 | D30: 24.6 | E30: 98.6 | F30: 724.1
A31: Всего за день: | C31: =SUM(C30+C22+C13+C10) -> 58.1 | D31: 51.0 | E31: 284.4 | F31: =SUM(F30+F22+F13+F10) -> 1,892.0

Sheet Лист3
